Cogmind - Beta 14 @@@ ROGUE MODE // 2024.09.28 @ 22:05:57 Player: KN-OKO Result: Destroyed by P-80 Master with Gamma Rifle Performance ------------- Evolutions (7) 3500 Regions Visited (21) 4200 Robots Destroyed (218) 1090 Value Destroyed (9090) 9090 Prototype IDs (34) 680 Alien Tech Used (2) 400 Bonus (2800) 2800 TOTAL SCORE: 21760 Bonus ------- High Alert Combat Kills 1636 Follower Combat Kills 301 Entered Garrisons 200 Used RIF Installer 500 Registered with UFD 300 Friendly Fire -137 Cogmind --------- Core Integrity 0/1300 Matter 297/300 Energy 98/100 System Corruption 10% Temperature Cool (0) Movement Core (50) Location -3/Research Parts ------- > --- POWER (2) -------- (None) > --- PROPULSION (4) --- (None) > --- UTILITY (12) ----- (None) > --- WEAPON (3) ------- (None) > --- INVENTORY (5) ---- Overtuned Huge Scrapsphere High-capacity Matter Pod (98) Cloaking Device Armageddon Trap Peak State ------------ > --- POWER ------------ Antimatter Reactor Particle Reactor > --- PROPULSION ------- Overtuned Huge Scrapsphere Overtuned Huge Scrapsphere > --- UTILITY ---------- Scrap Suit Advanced Cryofiber Web Advanced Heat Sink Huge Storage Unit Enhanced Optical Array Precision Energy Filter Heavy Armor Plating Insulated Plating Graphene Brace Advanced Force Field > --- WEAPON ----------- Dispersion Rifle Quantum Rifle Quantum Rifle > --- INVENTORY -------- Neutrino Core Overtuned Huge Scrapsphere Overtuned Huge Scrapsphere Advanced Cooling System Advanced Cooling System High-capacity Matter Pod Cloaking Device Improved Shield Generator Improved Remote Shield Transdimensional Reconstructor Quantum Rifle Quantum Rifle High-powered Shotgun Heavy Machine Gun Railgun Railgun Improved Proton Missile Launcher Scatter Rocket Array Improved Remote Datajack Phasing Sabre Armageddon Trap Armageddon Trap [Rating: 132] Favorites ----------- Power Heavy Ion Engine Engine Heavy Ion Engine Power Core Neutrino Core Reactor Light Quantum Reactor Propulsion Wheel Wheel Wheel Utility Huge Storage Unit Device Scrap Suit Storage Huge Storage Unit Processor Enhanced Optical Array Hackware Hacking Suite Protection Light Armor Plating Weapon Overtuned Coil Gun Energy Gun Quantum Rifle Energy Cannon Advanced Beam Cannon Ballistic Gun Overtuned Coil Gun Ballistic Cannon Improved Light Cannon Launcher Improved Proton Missile Launcher Special Weapon Improved Remote Datajack Impact Weapon Powered Hammer Slashing Weapon Phasing Sabre Special Melee Weapon Improved Datajack Build | -11 -10 -9 -9 -8 -8 -8 -8 -6 -6 -6 -5 -5 -5 -5 -4 -4 -4 -4 -4 -3 -3 ------- Run | Yrd Mat Mat Min Mat Sto Rec Scr Fac Gar Fac Fac Upp Upp Zhi Pro Fac Upp Upp War Pro Res Slots Evolved 14 | . . 2 . 2 . . . 4 . . 2 . . . . 2 . . . . 2 Power 1 | . . . . . . . . . . . . . . . . 1 . . . . . Propulsion 2 | . . 1 . . . . . 1 . . . . . . . . . . . . . Utility 10 | . . 1 . 1 . . . 3 . . 2 . . . . 1 . . . . 2 Weapon 1 | . . . . 1 . . . . . . . . . . . . . . . . . Parts Attached 273 | 8 2 6 . 6 25 2 14 8 12 17 14 14 1 5 18 9 11 16 . 13 72 Power 18 | 1 . 1 . . . . 1 . . 1 . 2 . . . 1 . . . 2 9 Engine 6 | 1 . 1 . . . . 1 . . 1 . . . . . 1 . . . 1 . Core 2 | . . . . . . . . . . . . 1 . . . . . . . 1 . Reactor 10 | . . . . . . . . . . . . 1 . . . . . . . . 9 Propulsion 29 | 2 . 2 . 1 9 . 4 1 1 1 1 2 . . . . . . . . 5 Treads . | . . . . . . . . . . . . . . . . . . . . . . Leg . | . . . . . . . . . . . . . . . . . . . . . . Wheel 29 | 2 . 2 . 1 9 . 4 1 1 1 1 2 . . . . . . . . 5 Hover . | . . . . . . . . . . . . . . . . . . . . . . Flight . | . . . . . . . . . . . . . . . . . . . . . . Utility 110 | 3 1 2 . 2 5 1 4 5 7 5 4 9 . 2 9 4 7 12 . 4 24 Device 66 | 2 . 1 . 2 2 . 2 3 1 2 2 8 . 1 9 3 3 8 . 3 14 Storage 7 | 1 1 . . . . 1 1 . . . . . . . . . . . . . 3 Processor 12 | . . 1 . . 1 . 1 1 1 2 1 . . . . . . . . . 4 Hackware 1 | . . . . . . . . 1 . . . . . . . . . . . . . Protection 24 | . . . . . 2 . . . 5 1 1 1 . 1 . 1 4 4 . 1 3 Artifact . | . . . . . . . . . . . . . . . . . . . . . . Weapon 116 | 2 1 1 . 3 11 1 5 2 4 10 9 1 1 3 9 4 4 4 . 7 34 Energy Gun 23 | 1 . 1 . . . . . . . . 1 . . . 2 1 1 . . 2 14 Energy Cannon 7 | . . . . . 3 . 1 1 1 . . . . . 1 . . . . . . Ballistic Gun 46 | 1 . . . 3 2 . 1 . 3 6 6 1 . 3 4 1 2 3 . 4 6 Ballistic Cannon 9 | . 1 . . . 4 1 2 1 . . . . . . . . . . . . . Launcher 12 | . . . . . 2 . . . . 1 1 . . . 2 . . 1 . . 5 Special Weapon 1 | . . . . . . . . . . . . . . . . . . . . . 1 Impact Weapon 3 | . . . . . . . . . . 3 . . . . . . . . . . . Slashing Weapon 14 | . . . . . . . . . . . 1 . 1 . . 2 1 . . 1 8 Piercing Weapon . | . . . . . . . . . . . . . . . . . . . . . . Special Melee Weapon 1 | . . . . . . . 1 . . . . . . . . . . . . . . Unidentified Prototypes 8 | . . 1 . 1 2 . . . . . 1 . . 1 . 1 . . . . 1 Parts Lost 64 | . . 1 . . 8 . . . 4 2 . 1 . . . . . 2 1 10 35 Power 9 | . . . . . . . . . . . . 1 . . . . . . 1 1 6 Propulsion 14 | . . 1 . . 5 . . . 1 1 . . . . . . . . . . 6 Utility 24 | . . . . . 2 . . . 3 1 . . . . . . . 2 . 4 12 Weapon 17 | . . . . . 1 . . . . . . . . . . . . . . 5 11 Highest Loss Streak 9 | . . 1 . . 3 . . . 2 2 . 1 . . . . . 1 1 5 9 To Critical Strikes . | . . . . . . . . . . . . . . . . . . . . . . Average Slot Usage (%) 88 | . 100 98 100 98 99 100 93 92 92 92 93 82 82 75 82 83 84 83 82 63 71 Engine 5 | . 14 11 11 9 9 9 8 6 6 6 5 . . . . 4 5 5 5 3 . Reactor 1 | . . . . . . . . . . . . 1 5 5 5 5 5 5 3 . 6 Wheel 20 | . 28 32 33 27 26 27 25 26 26 26 23 11 11 11 11 10 10 10 10 10 8 Device 15 | . 14 11 11 16 11 9 9 19 12 13 20 17 17 17 22 20 22 20 21 17 25 Storage 6 | . 14 11 11 9 9 9 8 6 6 6 5 5 5 5 5 5 5 5 5 5 3 Processor 10 | . . 10 11 9 9 9 9 13 8 16 13 17 17 17 11 10 10 10 10 10 7 Protection 5 | . . . . . 6 9 7 . 10 2 5 5 5 5 5 10 8 9 10 2 3 Energy Gun 2 | . 7 6 11 9 1 . . . . . . . . . 3 5 5 5 5 3 7 Energy Cannon 2 | . . . . . 4 9 8 6 2 . . . . . 2 . . . . . . Ballistic Gun 8 | . 14 4 . 18 10 . . 6 17 18 15 16 15 3 8 6 8 9 10 5 1 Ballistic Cannon 4 | . 6 11 11 . 9 18 12 5 . . . . . 2 . . . . . . . Peak Build Rating 132 | 9 8 14 14 24 26 26 43 60 60 73 93 108 108 111 114 123 125 126 118 110 132 Average Rating 65 | 6 7 11 14 21 23 25 27 56 54 64 87 105 107 104 108 119 124 120 115 90 111 On Entrance 65 | . 7 8 14 14 24 25 26 43 60 54 73 92 108 108 111 108 122 125 118 109 90 Naked Turns 2 | . . . . . . . . . . . . . . . . . . . . . 2 Heaviest Build 177 | 15 31 35 35 40 45 105 108 111 118 119 119 124 124 129 141 158 160 160 144 141 177 Greatest Support 48 | 20 20 36 36 36 48 36 36 34 34 34 34 40 40 40 40 40 40 40 40 40 40 Greatest Overweight (x) 7 | 3 1 1 . 1 1 2 5 3 3 4 3 3 3 3 3 7 3 3 3 4 7 Average Overweight (x) 2 | . . . . 1 . 1 2 3 3 3 3 2 3 2 3 3 3 3 3 2 3 Largest Inventory Capacity 25 | 8 15 15 15 15 15 25 25 25 25 25 25 25 25 25 25 25 25 25 25 25 25 Average Capacity 22 | 7 13 15 15 15 15 21 24 25 25 25 25 25 25 25 25 25 25 25 25 25 22 Most Carried 25 | 5 10 10 9 15 15 20 25 25 25 25 25 25 25 25 25 25 25 25 22 25 24 Average Carried 20 | 2 9 7 9 10 14 17 22 22 23 24 24 24 24 24 24 24 24 23 22 20 18 Final Capacity 25 | 8 15 15 15 15 15 25 25 25 25 25 25 25 25 25 25 25 25 25 25 25 5 Final Carried 25 | 5 10 9 9 15 15 19 25 25 23 23 24 24 24 24 25 25 25 22 22 20 5 Class Distribution -------------------- 28% | Scrapper 24% | Scavenger-Scrapper 18% | Scavenger-Gunner 8% | Mutant 6% | Scavenger-Mutant 6% | Scavenger-Tank Dominant Class ---------------- Mutant | -10/Materials Mutant | -9/Materials Mutant | -9/Mines Tank | -8/Materials Scavenger-Gunner | -8/Storage Scavenger-Gunner | -8/Recycling Scavenger-Gunner | -8/Scraptown Scrapper | -6/Factory Scrapper | -6/Garrison Scrapper | -6/Factory Scrapper | -5/Factory Scavenger-Scrapper | -5/Upper Caves Scavenger-Scrapper | -5/Upper Caves Scavenger-Scrapper | -5/Zhirov Scavenger-Scrapper | -4/Proximity Caves Scavenger-Scrapper | -4/Factory Scavenger-Scrapper | -4/Upper Caves Scavenger-Scrapper | -4/Upper Caves Scavenger-Scrapper | -4/Warlord Scrapper | -3/Proximity Caves Scavenger-Tank | -3/Research Resources | -11 -10 -9 -9 -8 -8 -8 -8 -6 -6 -6 -5 -5 -5 -5 -4 -4 -4 -4 -4 -3 -3 ----------- Run | Yrd Mat Mat Min Mat Sto Rec Scr Fac Gar Fac Fac Upp Upp Zhi Pro Fac Upp Upp War Pro Res Matter Collected 7448 | 313 91 190 . 295 885 231 123 41 785 888 438 233 175 141 461 113 339 444 . 247 1015 Remotely . | . . . . . . . . . . . . . . . . . . . . . . Salvage Created 12142 | 181 182 313 . 295 1301 407 . 61 1327 941 313 252 157 463 556 195 281 716 . 955 3246 Parts 511 | 7 12 14 . 14 61 12 . 5 54 63 13 15 3 7 21 10 21 31 . 20 128 Haulers Intercepted 3 | . 1 1 . . 1 . . . . . . . . . . . . . . . . Recyclers Shooed 14 | . . 2 . . 2 3 . 1 . 2 . . . . . 1 . . . . 3 Parts Field Recycled . | . . . . . . . . . . . . . . . . . . . . . . Retrieved Matter . | . . . . . . . . . . . . . . . . . . . . . . Parts Self-Destructed 96 | . . . . . . . . . . . . 14 11 5 16 . 18 15 . 17 . Prevented 14 | . . . . . . . . . . . . . 5 . 3 . . 6 . . . Kills | -11 -10 -9 -9 -8 -8 -8 -8 -6 -6 -6 -5 -5 -5 -5 -4 -4 -4 -4 -4 -3 -3 ------- Run | Yrd Mat Mat Min Mat Sto Rec Scr Fac Gar Fac Fac Upp Upp Zhi Pro Fac Upp Upp War Pro Res Combat Hostiles Destroyed 159 | . 4 5 . 4 28 1 . 1 15 14 4 6 . . 9 . 5 9 . 9 45 Melee 9 | . . . . . . . . . . . . . . . . . . . . 4 5 Guns 106 | . 2 3 . 4 18 . . 1 15 12 4 6 . . 5 . 5 8 . 4 19 Cannons 11 | . 2 2 . . 6 1 . . . . . . . . . . . . . . . AOE 29 | . . . . . 4 . . . . 2 . . . . 3 . . . . . 20 Classes Destroyed 19 | 2 2 1 . 2 2 . . 1 1 3 1 1 . . . . 1 1 . 1 . Worker 17 | . . . . 1 2 . . 1 . 1 . . . . . 1 . . . . 11 Builder 9 | . . . . . . . . . . 2 . . . . . 1 . . . . 6 Tunneler 5 | 4 . 1 . . . . . . . . . . . . . . . . . . . Hauler 3 | . 1 1 . . 1 . . . . . . . . . . . . . . . . Recycler 17 | 1 . 1 . 1 3 4 . . . 2 . . . . . 1 . . . . 4 Minesweeper 2 | . . . . . . . . . . . . . . . . . . . . 2 . Watcher 5 | . . . . . 1 . . . . . 2 . . . . . . . . . 2 Swarmer 37 | . . . . . 6 . . . 11 5 . 4 . . . . . . . 2 9 Grunt 58 | . 4 4 . 2 11 . . . 2 3 3 . . . 7 . 1 3 . 3 15 Brawler 2 | . . . . 1 . . . . . . . . . . . . . . . 1 . Duelist 2 | . . . . . . . . . . . 1 . . . . . . . . . 1 Sentry 22 | . . 1 . 1 11 1 . . . 1 . . . . . . . 1 . 1 5 Specialist 1 | . . . . . . . . . . . . . . . . . 1 . . . . Hunter 17 | . . . . . . . . . 2 1 . 1 . . . . 2 2 . 1 8 Programmer 13 | . . . . . . . . 1 . 3 . . . . 1 . 1 . . . 7 Heavy 1 | . . . . . . . . . . 1 . . . . . . . . . . . Behemoth 3 | . . . . . . . . . . . . 1 . . 1 . . . . 1 . Scrapoid 1 | . . . . . . . . . . 1 . . . . . . . . . . . Thug 1 | . . . . . . . . . . . . . . . . . . 1 . . . Fireman 2 | . . . . . . . . . . . . . . . . . . 2 . . . Best Kill Streak 17 | 4 2 2 . 4 8 2 . 1 3 4 4 3 . . 3 2 1 2 . 4 17 Combat Bots Only 10 | . 2 2 . 4 6 1 . 1 3 3 2 3 . . 3 . 1 2 . 4 10 Max Kills in Single Turn 7 | 1 1 2 . 2 3 1 . 1 2 3 1 1 . . 3 1 1 1 . 1 7 Gunslinging 1 | . . . . 1 1 . . . 1 1 . . . . . . . . . . 1 Exploded 5 | . . . . . 3 . . . . 2 . . . . 3 . . . . . 5 Melee 1 | . . . . . . . . . . . . . . . . . . . . 1 1 Uniques/NPCs Destroyed . | . . . . . . . . . . . . . . . . . . . . . . Combat | -11 -10 -9 -9 -8 -8 -8 -8 -6 -6 -6 -5 -5 -5 -5 -4 -4 -4 -4 -4 -3 -3 -------- Run | Yrd Mat Mat Min Mat Sto Rec Scr Fac Gar Fac Fac Upp Upp Zhi Pro Fac Upp Upp War Pro Res Hostile Shots Fired 1136 | . 14 23 . 14 108 . . 6 85 38 18 51 2 . 91 4 21 111 . 126 424 Missed 313 | . 2 8 . 8 27 . . . 16 13 7 13 1 . 29 1 6 37 . 33 112 Damage Taken 12736 | . 125 185 . 67 1094 . . 96 1027 353 214 615 22 . 980 20 120 771 103 1680 5264 Core 2066 | . 22 33 . 24 234 . . . 120 6 . 16 . . 39 . 28 19 . 255 1270 Absorbed by Shields 1738 | . . . . 25 69 . . . 92 . . . . . . 20 124 311 . 148 949 Redirected to Shielding 109 | . . . . . . . . . . . . . . . . . . . . . 109 Ignored by Resistances 628 | . . . . . . . . . . . . 37 . . 309 . 23 150 . 38 71 Regen/Repaired (Parts) 637 | . . . . . 27 . . 102 80 253 . . . . 6 25 58 71 . 10 5 Core Remaining (%) 83 | 100 91 . 91 . . . 53 . . 85 . . . . 94 . . . . 73 . Volleys Fired 657 | 11 17 26 . 25 70 46 . 33 133 69 26 29 9 . 30 3 14 36 . 18 62 Largest 3 | 2 2 2 . 3 3 3 . 3 3 3 3 3 1 . 3 2 3 3 . 3 3 Hottest 282 | 70 70 91 . 104 151 151 . 144 90 92 92 164 32 . 220 135 161 161 . 161 282 Shots Fired 1358 | 22 30 52 . 57 198 48 . 38 187 129 72 84 10 1 88 6 35 94 . 52 155 Gun 1053 | 22 22 26 . 57 123 . . 6 100 128 72 84 10 1 77 6 35 90 . 52 142 Cannon 280 | . 8 26 . . 72 48 . 32 87 . . . . . 7 . . . . . . Launcher 24 | . . . . . 3 . . . . 1 . . . . 4 . . 4 . . 12 Special 1 | . . . . . . . . . . . . . . . . . . . . . 1 Kinetic 915 | 11 21 36 . 33 154 37 . 31 100 128 72 77 10 1 58 3 25 60 . 35 23 Thermal 418 | 11 9 16 . 24 41 11 . 7 87 . . 7 . . 26 3 10 30 . 17 119 Explosive 11 | . . . . . 3 . . . . . . . . . 2 . . . . . 6 Electromagnetic 13 | . . . . . . . . . . 1 . . . . 2 . . 4 . . 6 Robot Hit Streak 44 | 6 7 11 . 7 17 7 . 6 44 11 11 5 . . 12 3 6 10 . 12 15 Robot Miss Streak 8 | 2 2 3 . 4 3 2 . 1 4 4 4 5 . . 4 2 3 2 . 2 8 Penetration Max 2 | . . . . . . . . . 1 2 . . . . 1 . . 1 . 2 1 Secondary Targets 21 | . . . . 1 3 . . . 4 1 1 . . . . . . 3 . 3 5 Max Gunslinging Chain 1 | . . . . 1 1 . . . 1 1 1 . . . . . . 1 . 1 1 Shots Hit Robots 900 | 12 17 34 . 40 130 18 4 8 137 61 38 36 3 8 55 7 19 67 . 57 149 Core Hits 497 | 5 7 10 . 12 58 6 . 3 54 34 15 12 1 6 36 1 9 24 . 21 183 Critical Kills 11 | . . . . 1 . . . . 4 1 . . . . 1 . 1 2 . 1 . Critical Parts Destroyed 13 | . . . . . . . . . 2 . 1 2 . . 3 . 1 2 . 1 1 Critical Strikes 42 | 1 4 . . 2 2 . . . 6 1 1 3 . . 5 1 2 4 . 5 5 Burn 9 | 1 3 . . 1 1 . . . . . . 1 . . 1 1 . . . . . Meltdown 1 | . . . . . . . . . 1 . . . . . . . . . . . . Destroy 24 | . . . . 1 . . . . 5 1 1 2 . . 4 . 2 4 . 3 1 Blast 2 | . 1 . . . 1 . . . . . . . . . . . . . . . . Sever 6 | . . . . . . . . . . . . . . . . . . . . 2 4 Melee Attacks 122 | . . . . . . . 4 . . 9 4 . 3 9 . 7 1 . . 27 58 Impact 9 | . . . . . . . . . . 9 . . . . . . . . . . . Slashing 109 | . . . . . . . . . . . 4 . 3 9 . 7 1 . . 27 58 Piercing . | . . . . . . . . . . . . . . . . . . . . . . Sneak Attacks 18 | . . . . . . . 3 . . . . . . . . 4 . . . 2 9 Combat Hostiles . | . . . . . . . . . . . . . . . . . . . . . . Follow-up Attacks 8 | . . . . . . . . . . . . . . . . . . . . . 8 Damage Inflicted 29373 | 150 237 604 . 720 2835 405 . 207 2987 1772 953 907 235 676 2089 455 522 2121 . 2432 9066 Guns 16069 | 150 197 269 . 720 1487 . . 92 1291 1688 953 907 . . 1325 81 522 1927 . 1143 3317 Cannons 3617 | . 40 335 . . 848 405 . 115 1696 . . . . . 178 . . . . . . Explosions 5194 | . . . . . 500 . . . . 84 . . . . 586 . . 194 . . 3830 Melee 4493 | . . . . . . . . . . . . . 235 676 . 374 . . . 1289 1919 Ramming . | . . . . . . . . . . . . . . . . . . . . . . Kinetic 12169 | 61 162 383 . 446 1809 261 . 92 1291 1688 953 853 . . 997 52 344 1380 . 829 568 Thermal 7517 | 89 75 221 . 274 526 144 . 115 1696 . . 54 . . 506 29 178 547 . 314 2749 Explosive 4324 | . . . . . 500 . . . . . . . . . 421 . . . . . 3403 Electromagnetic 870 | . . . . . . . . . . 84 . . . . 165 . . 194 . . 427 Impact . | . . . . . . . . . . . . . . . . . . . . . . Slashing 4493 | . . . . . . . . . . . . . 235 676 . 374 . . . 1289 1919 Piercing . | . . . . . . . . . . . . . . . . . . . . . . Highest Corruption 10 | . . . . . . . . . . . 2 2 2 2 3 . . . . 1 10 Average Corruption 2 | . . . . . . . . . . . 2 2 2 2 2 . . . . 1 3 Corruption Purged . | . . . . . . . . . . . . . . . . . . . . . . Corruption Blocked . | . . . . . . . . . . . . . . . . . . . . . . Effects 44 | . . . . . . . . . . . 3 8 6 3 5 . . . . 3 16 Message Errors 16 | . . . . . . . . . . . 1 3 1 . 2 . . . . 1 8 Matter Fused 10 | . . . . . . . . . . . 1 1 2 2 . . . . . 1 3 Heat Flow Errors 4 | . . . . . . . . . . . 1 1 1 . . . . . . . 1 Data Loss (minor) 7 | . . . . . . . . . . . . 1 . . 2 . . . . 1 3 Data Loss (major) 2 | . . . . . . . . . . . . . 1 . 1 . . . . . . Misfires 3 | . . . . . . . . . . . . . 1 1 . . . . . . 1 Weapon Failures 2 | . . . . . . . . . . . . 2 . . . . . . . . . Overload Shots . | . . . . . . . . . . . . . . . . . . . . . . Overflow Damage 1161 | . . . . . 11 5 . . 15 . . . 103 118 14 244 . . . 375 276 Projectiles 40 | . . . . . 11 5 . . 15 . . . . . 9 . . . . . . Explosions 34 | . . . . . . . . . . . . . . . 5 . . . . . 29 Melee 1087 | . . . . . . . . . . . . . 103 118 . 244 . . . 375 247 Knockbacks 9 | . . 2 . . 5 2 . . . . . . . . . . . . . . . Impact . | . . . . . . . . . . . . . . . . . . . . . . Kinetic 9 | . . 2 . . 5 2 . . . . . . . . . . . . . . . Secondary . | . . . . . . . . . . . . . . . . . . . . . . Self-Inflicted Damage 349 | . . . . . . . . . . . . . . . 64 . . . . . 285 Shots 16 | . . . . . . . . . . . . . . . 3 . . . . . 13 Rammed . | . . . . . . . . . . . . . . . . . . . . . . Targets Rammed . | . . . . . . . . . . . . . . . . . . . . . . Kicked . | . . . . . . . . . . . . . . . . . . . . . . Crushed . | . . . . . . . . . . . . . . . . . . . . . . Highest Temperature 358 | 45 60 204 . 213 228 42 . 44 336 119 274 358 158 . 244 122 160 244 237 306 156 Average Temperature 61 | 15 22 63 . 77 47 22 . 18 67 30 90 128 38 . 65 68 64 58 140 30 76 Received Heat Transfer 2461 | . 72 69 . 24 574 . . 18 54 36 72 36 . . 213 . 6 331 . 488 468 Effects 5 | . . . . 1 . . . . 1 . 1 2 . . . . . . . . . Energy Bleed 2 | . . . . . . . . . 1 . 1 . . . . . . . . . . Interference 3 | . . . . 1 . . . . . . . 2 . . . . . . . . . Siege Activations . | . . . . . . . . . . . . . . . . . . . . . . Robots Corrupted 2 | . . . . . . . . . . . . . . . . . . 1 . . 1 Combat Hostiles 2 | . . . . . . . . . . . . . . . . . . 1 . . 1 Parts Fried 8 | . . . . . . . . . . . . . . . . . . 2 . . 6 Impact Corruptions . | . . . . . . . . . . . . . . . . . . . . . . Robots Melted 3 | . . . . . . . . . 1 . . . . . 1 . . . . 1 . Combat Hostiles 2 | . . . . . . . . . . . . . . . 1 . . . . 1 . Parts Melted 25 | 2 2 2 . . 1 . . . 3 . . 1 . . 2 . . 1 . 1 10 Heat Transferred 12842 | 333 444 481 . 666 1147 259 . 185 3071 . . 200 . . 948 150 222 925 . 407 3404 Parts Sabotaged . | . . . . . . . . . . . . . . . . . . . . . . Parts Stolen . | . . . . . . . . . . . . . . . . . . . . . . Parts Stripped . | . . . . . . . . . . . . . . . . . . . . . . Power Chain Reactions . | . . . . . . . . . . . . . . . . . . . . . . Alert | -11 -10 -9 -9 -8 -8 -8 -8 -6 -6 -6 -5 -5 -5 -5 -4 -4 -4 -4 -4 -3 -3 ------- Run | Yrd Mat Mat Min Mat Sto Rec Scr Fac Gar Fac Fac Upp Upp Zhi Pro Fac Upp Upp War Pro Res Peak Influence 1364 | 25 208 234 91 160 815 316 . 58 614 322 249 . . . . 475 . . . . 1364 Initial 900 | . 16 87 91 35 67 273 . . 23 322 153 . . . . 451 . . . . 900 Average 325 | 10 101 141 91 87 531 177 . 18 247 191 195 . . . . 445 . . . . 830 Maximum Alert Level 4 | . 1 1 . . 3 1 . . 2 1 1 . . . . 2 . . . . 4 Low Security (%) 42 | 100 96 83 100 100 11 57 . 100 41 47 29 . . . . . . . . . . Level 1 26 | . 3 16 . . 13 42 . . 32 52 70 . . . . 9 . . . . . Level 2 18 | . . . . . 54 . . . 25 . . . . . . 90 . . . . 39 Level 3 9 | . . . . . 20 . . . . . . . . . . . . . . . 42 Level 4 2 | . . . . . . . . . . . . . . . . . . . . . 18 Level 5 . | . . . . . . . . . . . . . . . . . . . . . . High Security . | . . . . . . . . . . . . . . . . . . . . . . Max Security . | . . . . . . . . . . . . . . . . . . . . . . Squads Dispatched 29 | . 3 1 . . 6 . . 3 . 7 1 . . . . . . . . . 8 Investigation 11 | . 1 . . . 2 . . 2 . 4 1 . . . . . . . . . 1 Extermination 5 | . . . . . . . . 1 . 2 . . . . . . . . . . 2 Reinforcement 8 | . 2 1 . . 2 . . . . 1 . . . . . . . . . . 2 Assault 2 | . . . . . 2 . . . . . . . . . . . . . . . . Garrison 3 | . . . . . . . . . . . . . . . . . . . . . 3 Intercept . | . . . . . . . . . . . . . . . . . . . . . . Searches Triggered 4 | . . . . . . . . . . . . . . . . 1 . . . . 3 Construction Impeded 2 | . . . . . . . . . . . . . . . . . . . . . 2 Haulers Reinforced . | . . . . . . . . . . . . . . . . . . . . . . Active Scanning Responses . | . . . . . . . . . . . . . . . . . . . . . . Cargo Convoy Interrupts 1 | . . . . . . . . . . . . . . . . . . . . . 1 Stealth | -11 -10 -9 -9 -8 -8 -8 -8 -6 -6 -6 -5 -5 -5 -5 -4 -4 -4 -4 -4 -3 -3 --------- Run | Yrd Mat Mat Min Mat Sto Rec Scr Fac Gar Fac Fac Upp Upp Zhi Pro Fac Upp Upp War Pro Res Distress Signals 11 | . 1 4 . 3 1 . . . . . 1 . . . . 1 . . . . . Communications Jammed . | . . . . . . . . . . . . . . . . . . . . . . Distress Signals . | . . . . . . . . . . . . . . . . . . . . . . Times Spotted 266 | . 9 9 . 6 45 . . 7 22 21 10 8 3 . 13 5 6 12 . 15 75 Peak Tracking Total 12 | . 4 6 . 5 6 . . 7 4 4 5 4 3 . 5 5 1 4 . 4 12 Tactical Retreats 18 | . . 1 . . 2 . . . 3 . 1 1 . . 2 . 1 3 . 1 3 Traps | -11 -10 -9 -9 -8 -8 -8 -8 -6 -6 -6 -5 -5 -5 -5 -4 -4 -4 -4 -4 -3 -3 ------- Run | Yrd Mat Mat Min Mat Sto Rec Scr Fac Gar Fac Fac Upp Upp Zhi Pro Fac Upp Upp War Pro Res Traps Triggered 16 | . 1 . . . 3 . . 1 6 1 2 . . . . . . . 2 . . Indirectly 1 | . . . . . . . . . . 1 . . . . . . . . . . . Trap Hack Attempts . | . . . . . . . . . . . . . . . . . . . . . . Triggered . | . . . . . . . . . . . . . . . . . . . . . . Disarmed 2 | . . . . . . . . . . 2 . . . . . . . . . . . Reprogrammed 6 | . 6 . . . . . . . . . . . . . . . . . . . . Reused 11 | . 3 . . . . . . . 1 . . . . . . . . . . 7 . Traps Extracted . | . . . . . . . . . . . . . . . . . . . . . . Installed 13 | . . . . . . . . . 1 . . . 1 . . . . . . 10 1 Triggered 15 | . 3 . . . . . . . 1 . . . 1 . . . 1 1 . 8 . Most Traps Carried 9 | . . . . . . . . . 3 3 3 3 3 3 3 3 3 3 3 9 2 Machines | -11 -10 -9 -9 -8 -8 -8 -8 -6 -6 -6 -5 -5 -5 -5 -4 -4 -4 -4 -4 -3 -3 ---------- Run | Yrd Mat Mat Min Mat Sto Rec Scr Fac Gar Fac Fac Upp Upp Zhi Pro Fac Upp Upp War Pro Res Machines Disabled 16 | . . . . . 2 1 . . 4 6 1 . . 1 . . 1 . . . . Max in Single Turn 1 | . . . . . 1 1 . . 1 1 1 . . 1 . . 1 . . . . Garrison Access 4 | . . . . . 1 . . . . 1 1 . . . . 1 . . . . . Machines Repaired . | . . . . . . . . . . . . . . . . . . . . . . Machines Dismantled . | . . . . . . . . . . . . . . . . . . . . . . Machines Sabotaged . | . . . . . . . . . . . . . . . . . . . . . . Overloaded Fab Kills . | . . . . . . . . . . . . . . . . . . . . . . Hacking | -11 -10 -9 -9 -8 -8 -8 -8 -6 -6 -6 -5 -5 -5 -5 -4 -4 -4 -4 -4 -3 -3 --------- Run | Yrd Mat Mat Min Mat Sto Rec Scr Fac Gar Fac Fac Upp Upp Zhi Pro Fac Upp Upp War Pro Res Machines Accessed 52 | . 2 1 . 1 4 3 3 5 1 18 3 1 . 4 . 1 1 1 . . 3 Terminals 23 | . 2 1 . 1 2 2 . 1 1 10 . . . . . . . 1 . . 2 Fabricators 2 | . . . . . . . . . . 1 1 . . . . . . . . . . Repair Stations 5 | . . . . . 1 . . 1 . 3 . . . . . . . . . . . Recycling Units 7 | . . . . . . 1 . 1 . 3 1 . . . . . . . . . 1 Scanalyzers . | . . . . . . . . . . . . . . . . . . . . . . Garrison Access 6 | . . . . . 1 . . 2 . 1 1 . . . . 1 . . . . . Total Hacks 131 | . 6 2 . 1 8 5 8 10 3 59 3 1 . 17 . 1 1 1 . . 5 Successful 78 | . 2 1 . . 5 3 8 4 1 30 2 1 . 17 . 1 1 1 . . 1 Failed 53 | . 4 1 . 1 3 2 . 6 2 29 1 . . . . . . . . . 4 Catastrophic 10 | . 1 . . . . . . . . 7 1 . . . . . . . . . 1 Database Lockouts . | . . . . . . . . . . . . . . . . . . . . . . Manual 54 | . 3 . . 1 1 2 . 5 . 36 1 . . . . . . . . . 5 Terminals 68 | . 6 2 . 1 3 4 . 3 3 42 . . . . . . . 1 . . 3 Fabricators 3 | . . . . . . . . . . 2 1 . . . . . . . . . . Repair Stations 14 | . . . . . 2 . . 2 . 10 . . . . . . . . . . . Recycling Units 10 | . . . . . . 1 . 2 . 4 1 . . . . . . . . . 2 Scanalyzers . | . . . . . . . . . . . . . . . . . . . . . . Garrison Access 9 | . . . . . 3 . . 3 . 1 1 . . . . 1 . . . . . Terminal Hacks 45 | . 2 1 . . 2 2 8 . 1 9 . 1 . 17 . . 1 1 . . . Record 14 | . . . . . . . 8 . . . . . . 5 . . . 1 . . . Part Schematic 4 | . . . . . . . . . . . . . . 4 . . . . . . . Robot Analysis 5 | . . . . . . . . . . 1 . . . 4 . . . . . . . Prototype ID Bank 6 | . . 1 . . . . . . . 1 . . . 4 . . . . . . . Open Door 4 | . . . . . 2 . . . . . . 1 . . . . 1 . . . . Branch Access Points 1 | . . . . . . . . . . 1 . . . . . . . . . . . Recycling Unit Index 1 | . . . . . . . . . . 1 . . . . . . . . . . . Alert Level 1 | . . . . . . 1 . . . . . . . . . . . . . . . Unreport Threat 2 | . . . . . . . . . . 2 . . . . . . . . . . . Locate Traps 3 | . 1 . . . . . . . . 2 . . . . . . . . . . . Disarm Traps 1 | . . . . . . . . . . 1 . . . . . . . . . . . Reprogram Traps 1 | . 1 . . . . . . . . . . . . . . . . . . . . Zone Layout 1 | . . . . . . 1 . . . . . . . . . . . . . . . Garrison Registry 1 | . . . . . . . . . 1 . . . . . . . . . . . . Fabricator Hacks 1 | . . . . . . . . . . 1 . . . . . . . . . . . Network Status 1 | . . . . . . . . . . 1 . . . . . . . . . . . Repair Station Hacks 9 | . . . . . 2 . . 2 . 5 . . . . . . . . . . . Scan Component 5 | . . . . . 1 . . 1 . 3 . . . . . . . . . . . Repair 4 | . . . . . 1 . . 1 . 2 . . . . . . . . . . . Recycling Unit Hacks 1 | . . . . . . 1 . . . . . . . . . . . . . . . Report Inventory 1 | . . . . . . 1 . . . . . . . . . . . . . . . Scanalyzer . | . . . . . . . . . . . . . . . . . . . . . . Garrison Access Hacks 5 | . . . . . 1 . . 1 . 1 1 . . . . 1 . . . . . Unlock Access 1 | . . . . . . . . 1 . . . . . . . . . . . . . Seal Access 4 | . . . . . 1 . . . . 1 1 . . . . 1 . . . . . Unauthorized Hacks 17 | . . . . . . . . 1 . 14 1 . . . . . . . . . 1 Terminals 12 | . . . . . . . . 1 . 11 . . . . . . . . . . . Assimilate 2 | . . . . . . . . 1 . 1 . . . . . . . . . . . Botnet 5 | . . . . . . . . . . 5 . . . . . . . . . . . Skim 5 | . . . . . . . . . . 5 . . . . . . . . . . . Fabricators . | . . . . . . . . . . . . . . . . . . . . . . Repair Stations 5 | . . . . . . . . . . 3 1 . . . . . . . . . 1 Recycling Units . | . . . . . . . . . . . . . . . . . . . . . . Scrapoids 5 | . . . . . . . . . . 3 1 . . . . . . . . . 1 Scanalyzers . | . . . . . . . . . . . . . . . . . . . . . . Garrison Access . | . . . . . . . . . . . . . . . . . . . . . . Data Cores Recovered . | . . . . . . . . . . . . . . . . . . . . . . Used . | . . . . . . . . . . . . . . . . . . . . . . Hacking Detections 31 | . 2 1 . 1 3 2 . 4 1 14 1 . . . . . . . . . 2 Full Trace Events 3 | . . . . . . . . 1 1 1 . . . . . . . . . . . Feedback Events . | . . . . . . . . . . . . . . . . . . . . . . Feedback Blocked . | . . . . . . . . . . . . . . . . . . . . . . Robot Schematics Acquired . | . . . . . . . . . . . . . . . . . . . . . . Robots Built . | . . . . . . . . . . . . . . . . . . . . . . Authchips . | . . . . . . . . . . . . . . . . . . . . . . Time . | . . . . . . . . . . . . . . . . . . . . . . Total Robot Build Rating . | . . . . . . . . . . . . . . . . . . . . . . Part Schematics Acquired 4 | . . . . . . . . . . . . . . 4 . . . . . . . Parts Built . | . . . . . . . . . . . . . . . . . . . . . . Authchips . | . . . . . . . . . . . . . . . . . . . . . . Time . | . . . . . . . . . . . . . . . . . . . . . . Total Part Build Rating . | . . . . . . . . . . . . . . . . . . . . . . Parts Repaired 4 | . . . . . 1 . . 1 . 2 . . . . . . . . . . . Time 86 | . . . . . 26 . . 19 . 41 . . . . . . . . . . . Parts Recycled . | . . . . . . . . . . . . . . . . . . . . . . Recycled Matter . | . . . . . . . . . . . . . . . . . . . . . . Retrieved Matter . | . . . . . . . . . . . . . . . . . . . . . . Retrieved Components . | . . . . . . . . . . . . . . . . . . . . . . Parts Scanalyzed . | . . . . . . . . . . . . . . . . . . . . . . Part Schematics Acquired . | . . . . . . . . . . . . . . . . . . . . . . Parts Damaged . | . . . . . . . . . . . . . . . . . . . . . . Bothacking | -11 -10 -9 -9 -8 -8 -8 -8 -6 -6 -6 -5 -5 -5 -5 -4 -4 -4 -4 -4 -3 -3 ------------ Run | Yrd Mat Mat Min Mat Sto Rec Scr Fac Gar Fac Fac Upp Upp Zhi Pro Fac Upp Upp War Pro Res Used RIF Installer 1 | . . . . . . . . . 1 . . . . . . . . . . . . Robots Hacked 4 | . . . . . . . 3 . . . . . . . . . . . . . 1 Non-combat 2 | . . . . . . . 1 . . . . . . . . . . . . . 1 Combat 2 | . . . . . . . 2 . . . . . . . . . . . . . . Robot Hacks Applied 4 | . . . . . . . 3 . . . . . . . . . . . . . 1 parse_system 3 | . . . . . . . 3 . . . . . . . . . . . . . . find_recycling 1 | . . . . . . . . . . . . . . . . . . . . . 1 Relay Couplers Released . | . . . . . . . . . . . . . . . . . . . . . . Fabnet Peak Effective % . | . . . . . . . . . . . . . . . . . . . . . . Robots Rewired . | . . . . . . . . . . . . . . . . . . . . . . Allies Hacked . | . . . . . . . . . . . . . . . . . . . . . . Hacks Repelled . | . . . . . . . . . . . . . . . . . . . . . . Allies | -11 -10 -9 -9 -8 -8 -8 -8 -6 -6 -6 -5 -5 -5 -5 -4 -4 -4 -4 -4 -3 -3 -------- Run | Yrd Mat Mat Min Mat Sto Rec Scr Fac Gar Fac Fac Upp Upp Zhi Pro Fac Upp Upp War Pro Res Total Allies 17 | . . . . . . . . 1 . 11 5 . . . . . . . . . . Largest Group 6 | . . . . . . . . 1 . 6 6 2 . . . . . . . . . Highest-Rated Group 238 | . . . . . . . . 10 . 172 238 94 . . . . . . . . . Highest-Rated Ally 50 | . . . . . . . . 10 . 31 50 47 . . . . . . . . . Total Orders . | . . . . . . . . . . . . . . . . . . . . . . Ally Attacks 94 | . . . . . . . . . . 51 38 5 . . . . . . . . . Total Damage 1501 | . . . . . . . . . . 677 795 29 . . . . . . . . . Kills 8 | . . . . . . . . . . 2 6 . . . . . . . . . . Allies Corrupted . | . . . . . . . . . . . . . . . . . . . . . . Allies Melted . | . . . . . . . . . . . . . . . . . . . . . . Intel | -11 -10 -9 -9 -8 -8 -8 -8 -6 -6 -6 -5 -5 -5 -5 -4 -4 -4 -4 -4 -3 -3 ------- Run | Yrd Mat Mat Min Mat Sto Rec Scr Fac Gar Fac Fac Upp Upp Zhi Pro Fac Upp Upp War Pro Res Robot Analysis Total 5 | . . . . . . . . . . 1 . . . 4 . . . . . . . Derelict Logs Recovered 6 | . . . . . . . . . . . . 1 1 . 1 . 2 1 . . . Drone Launches . | . . . . . . . . . . . . . . . . . . . . . . Drone Recoveries . | . . . . . . . . . . . . . . . . . . . . . . Exploration | -11 -10 -9 -9 -8 -8 -8 -8 -6 -6 -6 -5 -5 -5 -5 -4 -4 -4 -4 -4 -3 -3 ------------- Run | Yrd Mat Mat Min Mat Sto Rec Scr Fac Gar Fac Fac Upp Upp Zhi Pro Fac Upp Upp War Pro Res Turns Passed 13911 | 110 377 196 9 328 938 945 2367 517 969 1448 631 442 327 189 367 277 619 538 84 924 1309 Spaces Moved 10141 | 61 293 104 11 226 580 754 1951 372 575 1074 479 352 284 161 252 231 462 403 84 721 711 Core 218 | 5 . . . . . . 162 . . . . . . . . . . . . . 51 Treads . | . . . . . . . . . . . . . . . . . . . . . . Legs . | . . . . . . . . . . . . . . . . . . . . . . Wheels 9923 | 56 293 104 11 226 580 754 1789 372 575 1074 479 352 284 161 252 231 462 403 84 721 660 Hover . | . . . . . . . . . . . . . . . . . . . . . . Flight . | . . . . . . . . . . . . . . . . . . . . . . Fastest Speed 50 | 50 80 86 86 101 93 101 50 105 105 105 100 90 100 90 100 100 100 100 100 90 50 Average Speed 104 | 80 92 91 86 101 100 110 117 105 105 105 100 94 100 94 100 100 100 100 100 93 100 Slowest Speed 200 | 200 95 95 86 101 108 116 155 105 105 110 105 100 100 100 100 140 100 100 100 110 200 Overloaded Moves . | . . . . . . . . . . . . . . . . . . . . . . Propulsion Burnouts . | . . . . . . . . . . . . . . . . . . . . . . Robots Hopped . | . . . . . . . . . . . . . . . . . . . . . . Cave-ins Triggered . | . . . . . . . . . . . . . . . . . . . . . . Teleports 1 | . . . . . . . . . . . . . . . . . . . . . 1 Exploration Rate (%) 44 | 4 48 17 6 22 84 97 92 17 59 39 14 58 50 61 47 8 71 69 17 78 22 Regions Visited 21 Branch Regions 12 Pre-discovered Areas 4 | . . . . . . . . . . . . . . 3 . . 1 . . . . Known Exits Taken 2 | . . . . . . . . 1 . . . . . . 1 . . . . . . Unknown Exits Taken 18 | 1 1 1 1 1 1 1 1 . . 1 1 1 1 1 . 1 1 1 1 1 . Scrap Searched 16 | . . . . . . . 5 . . . . . 2 . 2 . 5 1 . 1 . Spaces Dug 118 | . . . . . 2 13 . 6 . 44 8 11 4 . . 3 2 2 . 3 20 Terrain Destroyed 484 | . . . . . 41 15 . 7 21 55 19 44 5 1 59 6 14 34 . 26 137 Melee 39 | . . . . . . . . . . 9 4 . . . . 3 . . . 3 20 Projectile 274 | . . . . . 11 15 . 7 21 46 15 44 5 1 26 3 14 34 . 23 9 AOE 170 | . . . . . 30 . . . . . . . . . 32 . . . . . 108 Terrain Rammed . | . . . . . . . . . . . . . . . . . . . . . . Walls Destroyed . | . . . . . . . . . . . . . . . . . . . . . . Machines Disabled . | . . . . . . . . . . . . . . . . . . . . . . Actions | -11 -10 -9 -9 -8 -8 -8 -8 -6 -6 -6 -5 -5 -5 -5 -4 -4 -4 -4 -4 -3 -3 --------- Run | Yrd Mat Mat Min Mat Sto Rec Scr Fac Gar Fac Fac Upp Upp Zhi Pro Fac Upp Upp War Pro Res Total 12368 | 95 370 153 10 281 791 815 2039 465 799 1311 588 441 318 185 317 261 594 472 83 900 1080 Wait 835 | 11 51 10 . 12 84 7 8 42 36 114 31 30 17 . 15 5 102 18 . 96 146 Move 10120 | 60 292 103 10 225 579 753 1950 372 573 1073 478 351 283 160 251 230 461 402 83 720 711 Hop . | . . . . . . . . . . . . . . . . . . . . . . Pick Up 156 | 5 5 4 . 9 13 5 38 5 7 14 10 5 2 2 2 2 2 . . 8 18 Fast Attach 75 | 7 1 . . 1 10 . 7 2 . 2 6 3 . 3 . 4 . . . 3 26 Attach 64 | . . 4 . 1 8 . 4 5 7 4 2 1 . 1 1 1 . 2 . 4 19 Detach 23 | . 1 1 . . 2 . 2 1 1 1 2 1 . 1 1 . . . . 1 8 Swap 136 | 1 1 2 . 4 7 2 3 1 5 11 6 10 1 2 17 4 11 14 . 6 28 Drop 136 | . 2 3 . 4 18 2 23 4 4 14 15 11 2 7 . 5 3 . . 7 12 Fire 657 | 11 17 26 . 25 70 46 . 33 133 69 26 29 9 . 30 3 14 36 . 18 62 Melee 113 | . . . . . . . 4 . . 9 4 . 3 9 . 7 1 . . 27 49 Ram . | . . . . . . . . . . . . . . . . . . . . . . Kick . | . . . . . . . . . . . . . . . . . . . . . . Crush . | . . . . . . . . . . . . . . . . . . . . . . Escape Stasis 40 | . . . . . . . . . 32 . 8 . . . . . . . . . . Rewire . | . . . . . . . . . . . . . . . . . . . . . . Trap 13 | . . . . . . . . . 1 . . . 1 . . . . . . 10 1 Miscellaneous . | . . . . . . . . . . . . . . . . . . . . . . Route ------- -11/Scrapyard -10/Materials -9/Materials -9/Mines -8/Materials -8/Storage (discovered 2 exits: [*Fac] / *Rec) -8/Recycling (discovered 2 exits: *Fac / *Scr) -8/Scraptown (discovered 2 exits: *Fac x2) -6/Factory (discovered 2 exits: Ext / Gar) -6/Garrison (discovered 3 exits: *Fac x3) -6/Factory (discovered 7 exits: *Fac x3 / *Low x2 / Ext x2) -5/Factory -5/Upper Caves -5/Upper Caves (discovered 2 exits: Fac / *Zhi) -5/Zhirov -4/Proximity Caves -4/Factory (discovered 2 exits: *Res / *Upp) -4/Upper Caves -4/Upper Caves (discovered 2 exits: Res / [*War]) -4/Warlord -3/Proximity Caves -3/Research (discovered 1 exit: Tes) History --------- Turn | Location | Event 14 | -11/Scrapyard | Discovered new exit (range 15) 111 | -11/Scrapyard | Entered Materials 301 | -10/Materials | Build established: Mutant 478 | -10/Materials | Discovered new exit (range 11) 488 | -10/Materials | Entered another Materials area 488 | -9/Materials | Evolved 2 slots: Propulsion x1, Utility x1 633 | -9/Materials | Discovered new exit (range 9) 684 | -9/Materials | Entered Mines 690 | -9/Mines | Discovered new exit (range 5) 693 | -9/Mines | Entered Materials 693 | -8/Materials | Evolved 2 slots: Utility x1, Weapon x1 841 | -8/Materials | Discovered new exit (range 10) 1021 | -8/Materials | Entered Storage 1138 | -8/Storage | Lost 3 parts (2n1u) 1299 | -8/Storage | Discovered new exit (range 16) 1488 | -8/Storage | Repaired Com. Wheel 1646 | -8/Storage | Found Prototype Launcher 1646 | -8/Storage | Identified Scatter Rocket Array 1821 | -8/Storage | First assault squad dispatched 1863 | -8/Storage | Build established: Scavenger-Gunner 1955 | -8/Storage | Used back door to open Recycling access 1955 | -8/Storage | Discovered new exit (range 5) 1959 | -8/Storage | Entered Recycling 2379 | -8/Recycling | Discovered new exit (range 15) 2877 | -8/Recycling | Scanned before Scraplab entrance 2894 | -8/Recycling | Entered Scraplab 2903 | -8/Recycling | Discovered new exit (range 2) 2904 | -8/Recycling | Entered Scraptown 3107 | -8/Scraptown | Heard Great Nut preacher, LISTEN AND RECITE! 3157 | -8/Scraptown | Discovered new exit (range 5) 3275 | -8/Scraptown | Visited Cave Peace 3292 | -8/Scraptown | Visited Symbiants 3305 | -8/Scraptown | Visited Cyclists 3324 | -8/Scraptown | Visited Awakened 3549 | -8/Scraptown | Visited Assassins FH 3603 | -8/Scraptown | Visited SPCMW 3648 | -8/Scraptown | Visited TADAMA 3700 | -8/Scraptown | Visited UFD Registry 3700 | -8/Scraptown | Registered with UFD as "Nanoforce" 3734 | -8/Scraptown | Entered Cyclist Reading Room 3836 | -8/Scraptown | Visited Observation Area 3899 | -8/Scraptown | Visited Abandonware Association 3919 | -8/Scraptown | Learned abandonware demo "OVRCLOCK.EXE" 3923 | -8/Scraptown | Learned abandonware demo "REVENGE.EXE" 3923 | -8/Scraptown | Learned abandonware demo "TRNCOAT.EXE" 3958 | -8/Scraptown | Visited Curators Association 4074 | -8/Scraptown | Build established: Mutant 4225 | -8/Scraptown | Visited A0-MCA Data Center 4232 | -8/Scraptown | Given an A rating by A0-MCA 4236 | -8/Scraptown | Found A0-MCA's Component Scanner 4260 | -8/Scraptown | Visited Scrap Suit Storage 4269 | -8/Scraptown | Found Scrap Suit 4276 | -8/Scraptown | Found Scrap Suit 4299 | -8/Scraptown | Visited Junk Repository 4327 | -8/Scraptown | Visited Modified Component R&D 4428 | -8/Scraptown | Discovered new exit (range 3) 4490 | -8/Scraptown | Build established: Scavenger-Mutant 4533 | -8/Scraptown | Visited Scrapoid Research Area 4582 | -8/Scraptown | Visited Infowarlord's Domain 4591 | -8/Scraptown | Found Exp. Terrain Scan Processor 4870 | -8/Scraptown | Visited Cartography Club 4899 | -8/Scraptown | Found Surveybot 17 Chip 5259 | -8/Scraptown | Build established: Scrapper 5271 | -8/Scraptown | Entered Factory 5271 | -6/Factory | Evolved 4 slots: Propulsion x1, Utility x3 5571 | -6/Factory | Repaired Assault Cannon 5631 | -6/Factory | Discovered new exit (range 14) 5788 | -6/Factory | Identified exit to Garrison 5788 | -6/Factory | Entered Garrison 5855 | -6/Garrison | Triggered checkpoint 6127 | -6/Garrison | Triggered checkpoint 6336 | -6/Garrison | Triggered checkpoint 6395 | -6/Garrison | Discovered new exit (range 9) 6450 | -6/Garrison | Attempted to access garrison exit controls, blocked by remote lockdown 6483 | -6/Garrison | Triggered checkpoint 6696 | -6/Garrison | Discovered new exit (range 12) 6705 | -6/Garrison | Installed Relay Interface Framework 6727 | -6/Garrison | Discovered new exit (range 62) 6727 | -6/Garrison | Discovered new exit (range 6) 6727 | -6/Garrison | Discovered new exit (range 50) 6757 | -6/Garrison | Entered Factory 6941 | -6/Factory | Discovered new exit (range 18) 7129 | -6/Factory | Discovered new exit (range 7) 7224 | -6/Factory | Repaired Lgt. Armor Plating 7413 | -6/Factory | Discovered new exit (range 18) 7416 | -6/Factory | Discovered new exit (range 20) 7448 | -6/Factory | Identified exit to Lower Caves 7448 | -6/Factory | Identified exit to Extension 7697 | -6/Factory | Scrapoids reinforcements arrived? 7744 | -6/Factory | Scrapoids reinforcements arrived? 7774 | -6/Factory | Lost 4 allies 7913 | -6/Factory | Repaired Ovr. Coil Gun 8101 | -6/Factory | Scrapoids reinforcements arrived? 8127 | -6/Factory | Discovered new exit (range 17) 8205 | -6/Factory | Entered another Factory area 8205 | -5/Factory | Accompanied by 6 allies 8205 | -5/Factory | Evolved 2 slots: Utility x2 8274 | -5/Factory | Found Scrap Suit 8293 | -5/Factory | Lost 3 allies 8337 | -5/Factory | Lost 3 allies 8694 | -5/Factory | Scrapoids reinforcements arrived? 8786 | -5/Factory | Discovered new exit (range 16) 8800 | -5/Factory | Found Imp. Powered Armor 8836 | -5/Factory | Entered Upper Caves 8836 | -5/Upper Caves | Accompanied by 2 allies 8976 | -5/Upper Caves | Learned Factory emergency access door positions 9055 | -5/Upper Caves | Spotted B-75 Beast 9078 | -5/Upper Caves | Build established: Scavenger-Scrapper 9083 | -5/Upper Caves | Destroyed B-75 Beast 9262 | -5/Upper Caves | Discovered new exit (range 19) 9278 | -5/Upper Caves | Entered another Upper Caves area 9527 | -5/Upper Caves | Discovered new exit (range 17) 9541 | -5/Upper Caves | Identified exit to Factory 9599 | -5/Upper Caves | Attracted the attention of an 0b10 checkpoint 9605 | -5/Upper Caves | Entered Zhirov 9606 | -5/Zhirov | Discovered new exit (range 3) 9643 | -5/Zhirov | Learned location of Quarantine (-2) 9643 | -5/Zhirov | Learned location of Testing (-3) 9643 | -5/Zhirov | Learned location of Command (-1) 9663 | -5/Zhirov | Found Alien Artifact 9663 | -5/Zhirov | Identified Integrated Dissipator 9663 | -5/Zhirov | Installed Integrated Dissipator, increased core heat dissipation (+20) 9678 | -5/Zhirov | Found Alien Artifact 9794 | -5/Zhirov | Entered Proximity Caves 9807 | -4/Proximity Caves | Spotted B-86 Titan 9837 | -4/Proximity Caves | Destroyed B-86 Titan 10064 | -4/Proximity Caves | Spotter reported a threat 10102 | -4/Proximity Caves | Learned Research emergency access door positions 10145 | -4/Proximity Caves | Spotter reported a threat 10151 | -4/Proximity Caves | Discovered exit to Factory (range 10) 10161 | -4/Proximity Caves | Entered Factory 10161 | -4/Factory | Evolved 2 slots: Power x1, Utility x1 10340 | -4/Factory | Discovered new exit (range 15) 10395 | -4/Factory | Discovered new exit (range 17) 10411 | -4/Factory | Search patrols dispatched 10438 | -4/Factory | Entered Upper Caves 10526 | -4/Upper Caves | Learned location of Armory (-4) 10626 | -4/Upper Caves | Acquired the password to a Derelict Tinkerer's latest research 10972 | -4/Upper Caves | Caught by Unaware searching for contraband prototypes 11037 | -4/Upper Caves | Discovered new exit (range 19) 11057 | -4/Upper Caves | Entered another Upper Caves area 11059 | -4/Upper Caves | Attracted the attention of an 0b10 checkpoint 11084 | -4/Upper Caves | Discovered new exit (range 18) 11188 | -4/Upper Caves | Spotted B-86 Titan 11352 | -4/Upper Caves | Ambushed by wild Derelicts 11479 | -4/Upper Caves | Discovered new exit (range 20) 11507 | -4/Upper Caves | Learned location of 1 exit from Research 11576 | -4/Upper Caves | Encountered a Warlord checkpoint 11595 | -4/Upper Caves | Entered Warlord 11633 | -4/Warlord | RIF detected upon attempting to enter Warlord's base 11633 | -4/Warlord | Attacked by Warlord forces 11662 | -4/Warlord | Discovered new exit (range 19) 11679 | -4/Warlord | Entered Proximity Caves 11771 | -3/Proximity Caves | Spotted B-86 Titan 11784 | -3/Proximity Caves | Spotter reported a threat 11888 | -3/Proximity Caves | Spotter reported a threat 11899 | -3/Proximity Caves | Lost 5 parts (1p3u1w) 11941 | -3/Proximity Caves | Spotter reported a threat 12060 | -3/Proximity Caves | Build established: Scrapper 12073 | -3/Proximity Caves | Spotter reported a threat 12099 | -3/Proximity Caves | Destroyed B-86 Titan 12100 | -3/Proximity Caves | Attracted the attention of an 0b10 checkpoint 12112 | -3/Proximity Caves | Spotter reported a threat 12124 | -3/Proximity Caves | Lost 3 parts (1u2w) 12164 | -3/Proximity Caves | Spotter reported a threat 12546 | -3/Proximity Caves | Spotter reported a threat 12587 | -3/Proximity Caves | Discovered new exit (range 15) 12603 | -3/Proximity Caves | Entered Research 12603 | -3/Research | Evolved 2 slots: Utility x2 12604 | -3/Research | Identified exit to Testing 12872 | -3/Research | Spotted B-86 Titan 12896 | -3/Research | Search patrols dispatched 12961 | -3/Research | Garrison activated, responded to threat 13103 | -3/Research | Search patrols dispatched 13353 | -3/Research | Search patrols dispatched 13469 | -3/Research | Lost 3 parts (2u1w) 13494 | -3/Research | Build established: Scavenger-Tank 13548 | -3/Research | Destroyed 7 combat bots 13577 | -3/Research | Lost 8 parts (3p3u2w) 13648 | -3/Research | Destroyed 10 combat bots 13653 | -3/Research | Lost 4 parts (1p2u1w) 13712 | -3/Research | Destroyed 9 combat bots 13713 | -3/Research | Lost 9 parts (1p2n3u3w) 13801 | -3/Research | Core integrity fell below 50% 13837 | -3/Research | Lost 3 parts (1p2n) 13878 | -3/Research | Identified Transdimensional Reconstructor 13878 | -3/Research | Warped through subspace 13900 | -3/Research | Spotted Striker 13900 | -3/Research | Spotted Executioner 13900 | -3/Research | Spotted Striker 13901 | -3/Research | Cargo convoy interrupted 13905 | -3/Research | Spotted Striker 13908 | -3/Research | Core integrity fell below 20% 13908 | -3/Research | System corruption reached 10% 13910 | -3/Research | Released all parts (10) 13912 | -3/Research | Destroyed by P-80 Master with Gamma Rifle Last Messages --------------- 13909_ Antimatter Diverter explodes. 13909_ Ovr. Huge Scrapsphere destroyed. 13909_ Com. Wheel destroyed. 13909_ G-67 Veteran destroyed. 13909_ U-05 Engineer destroyed. 13909_ U-05 Engineer builds a Wall. 13910_ Released Huge Storage Unit. 13910_ Released Particle Reactor. 13910_ Released Imp. Melee Analysis Suite. 13910_ Released Adv. Heat Sink. 13910_ Released Adv. Cryofiber Web. 13910_ Released Enh. Optical Array. 13910_ Released Graphene Brace. 13910_ Released Imp. Melee Analysis Suite. 13910_ Released Phasing Sabre. 13910_ Installed Armageddon Trap. 13911_ Slug penetrates Striker. 13911_ Slug penetrates R-10 Processor. 13911_ K-01 Serf collects debris. 13912_ The unstable cave ceiling collapses. Map ----- +----------------------------------------------------+ | ?????????????????????????????????????????????????? | | ???????????????????????????????????????????????### | | ???????????????????????????????????????????????# | | ???????????????????????????????????????????????# | | ???????????????????????????????????????????????# | | ???????????????????????????????????????=???????# | | ?????????????????????????????????????? ??? ????# ! | | ????????????????????????????????????? ? ? ???# ! | | ????????????????????????????????????? ? * !??# | | ???????????????????????????????????? ?? !!?? | | ???????????????????????????######### ?? ### | | ??????????????????????????? ?? | | ???????????????????????????? ??? | | ???????????????????????????? ikk ?? | | ???????????????????????????? m %? ? | | ?????????????????#??????????# K ####+############ | | ???????????????# """????????# hEK# % [* #??? | | ???????????????#""T""########p p # % ! ##?? | | ????????? ####"" ""# K p """" ##?? | | ????????? # "" """" #[ # | | ???????????? ] R% u "" """ #### | | ??????????????# # "" """" %+ % | | ??????????????#![! # S """ =%#### | | ??????????????#![! # "" #!?? | | ??????????????#!! *^! "" # ? | | ??????????????# @!%!*/ # "" # ## | | ??????????????# ![! # # | | ??????????????# # #### | | ??????????????# ############+#### | | ??????????????## ###;;# ###??????# # ### | | ?????????????????? ###????????## # | | ?????????????????# #????######## # | | ?????????????????# #????# +% | | ?????????????????# #????# ###### # | | ?????????????????# #????# #????# % # | | ?????????????????# #????# #?######+#### | | ?????????????????# #????# #?# | | ?????????????????# #????# #?# | | ?????????????????# #????# #?# | | ?????????????????# #????# #?# | | ?????????????????# #????# #?# * | | ?????????????????# #????+ #?######+#### | | ?????????????????##############????# #?# # | | ?????????????????????????????????### ### # | | ???????????????? ############### # """ # | | ??????????????? # """ # | | ??????????????? / """ # | | ??????????????? = % # # | | ?????????????????????###### ######!*%%[# ! # | | ?????????????????????????????????##[==## [ # | +----------------------------------------------------+ Best States ------------- Heat Dissipation 249 Energy Generation 41 Energy Capacity 565 Matter Stores 408 Matter Capacity 500 Sight Range 22 Terrain Scan Range 20 Terrain Scan Density 1210 Cloak Strength 2 Base Temperature (-) 200 Armor Coverage 850 Resistance: KI 25 Resistance: TH 30 Resistance: EM 15 Utility Shielding 66 Evasion (%) 50 Targeting Accuracy 8 Melee Accuracy 18 Energy Filtering 50 Offensive Hacking 10 Item Schematics ----------------- Assault Drone Bay | -5/Zhirov | Free Exp. Heat Sink | -5/Zhirov | Free Exp. Optical Array | -5/Zhirov | Free Imp. Arc Thrower | -5/Zhirov | Free Robot Schematics ------------------ None Fabricated ------------ Nothing Alien Tech Used ----------------- Integrated Dissipator Transdimensional Reconstructor Achievements -------------- None Challenges ------------ None Game ------ Seed GreatGravitonTorch Manual? 0 Play Time 02:21:28 Cumulative 437.9 hours Start 2024.09.26 @ 20:51:35 End 2024.09.28 @ 22:05:57 Sessions 7 Manual Loads 0 Difficulty Rogue Special Mode None Game No. 305 Rogue 305 Adventurer 0 Explorer 0 Win Type - Total 39 Types 33/0/4/2/0/0/0/0/0 Lore% 74 Gallery% 84 Achievement% 71 Wizard Run 0 Options --------- Layout 1 ASCII 0 Keyboard 1 Movement Numpad Keybinds 0 Fullscreen 2 Font 32/SmallcapsGlow Map View 50x35 Zoom Use 0% Tactical HUD 1 Map Filters NONE Filters NONE Steam 1 RUN: 13ff2e3c-f339-4d38-8abe-5cea0ca5c226